bitfinex/quotes_ETHUSD_20220218
["timestamp","ask_amount","ask_price","bid_price","bid_amount"]
[1645192696871,0.00239814,2901.1,2900.8,1.46787839]
[1645192697076,0.00239814,2901.1,2900.7,0.04143816]
[1645192697276,0.00479628,2901.1,2900.7,0.04143816]
[1645192697674,0.00479628,2901.1,2900.8,1.46788217]
[1645192697871,0.00239814,2901.1,2900.8,1.46788217]
[1645192698111,0.86221,2901.7,2900.8,1.46788217]
[1645192698514,1.2626678,2901.8,2900.8,1.46788217]
[1645192698722,1.16993975,2901.8,2901.1,0.96608726]
[1645192699720,0.00239007,2901.4,2900.7,1.18513816]
[1645192699927,0.00239007,2901.4,2900.8,1.46779496]
[1645192700820,0.00239007,2901.4,2901.0,1.11585926]
[1645192701022,0.00239007,2901.4,2900.9,0.03337577]
[1645192701419,0.8622331,2901.5,2900.9,0.03337577]
[1645192701621,0.00239,2901.6,2900.9,0.03337577]
[1645192702068,0.00239016,2901.2,2900.9,0.03337577]
[1645192702267,0.00239016,2901.2,2900.9,1.07959538]
[1645192703369,0.002398,2901.4,2900.9,1.07959538]
[1645192703570,0.002398,2901.4,2900.9,0.03337577]
[1645192704575,0.00226444,2901.2,2900.9,0.03337577]
[1645192704774,0.00226444,2901.2,2901.0,1.1644992]
[1645192706318,0.00226439,2901.3,2901.1,0.03750299]
[1645192706718,1.09836271,2901.8,2901.1,0.03750299]
[1645192707119,0.00226308,2901.2,2901.1,0.03750299]
[1645192708420,0.00226304,2901.3,2901.1,0.03750299]
[1645192708827,0.00226304,2901.3,2901.2,1.46757509]
[1645192709024,0.0300678,2901.8,2901.3,5.5]
[1645192709222,0.0300678,2901.8,2901.4,2.32939509]
[1645192709466,0.0300678,2901.8,2901.5,1.46757509]
[1645192709674,0.0300678,2901.8,2901.5,2.61017509]
[1645192709869,0.0300678,2901.8,2901.5,1.1426]
[1645192710571,0.0300678,2901.8,2901.6,0.1723]
[1645192710772,0.0300678,2901.8,2901.6,1.03413]
[1645192711570,0.0300678,2901.8,2901.6,0.1723]
[1645192712579,0.0300678,2901.8,2901.6,1.03412]
[1645192712773,0.0300678,2901.8,2901.7,1.46736859]
[1645192712972,0.0300678,2901.8,2901.6,1.03412]
[1645192713219,0.03095603,2901.8,2901.6,1.03412]
[1645192713425,0.96276345,2901.8,2901.6,0.1723]
[1645192713629,0.03095603,2901.8,2901.5,1.1426]
[1645192713820,0.03095603,2901.8,2901.1,4.9816]
[1645192714020,0.03095603,2901.8,2901.2,1.46755102]
[1645192714219,0.03184426,2901.8,2901.2,1.46755102]
[1645192714921,1.01224601,2901.7,2901.2,1.46755102]
[1645192715128,1.01224601,2901.7,2901.1,6.1947]
[1645192715322,1.01224601,2901.7,2901.1,2.902]
[1645192715523,1.01224601,2901.7,2901.1,2.7297]
[1645192715725,1.01224601,2901.7,2901.2,1.46762104]
[1645192716325,1.03771944,2901.7,2901.2,1.46762104]
[1645192716727,0.00240153,2901.6,2901.2,1.46762104]
[1645192717583,0.00240153,2901.6,2901.1,3.80424042]
[1645192717986,0.00232901,2901.5,2901.1,3.80424042]
[1645192719591,0.00232901,2901.5,2901.1,2.7297]
[1645192720397,0.00465802,2901.5,2901.1,2.7297]
[1645192720819,0.00465802,2901.5,2901.1,1.5166]
[1645192721219,0.00232901,2901.5,2901.1,1.5166]
[1645192721420,0.00232901,2901.5,2901.4,0.04018033]
[1645192721621,0.00465804,2901.5,2901.4,0.04018033]
[1645192723223,0.00232903,2901.5,2901.4,0.04018033]
[1645192725681,0.8622624,2901.6,2901.4,0.04018033]
[1645192725876,0.497,2901.5,2901.4,0.04018033]
[1645192726273,0.497,2901.5,2900.7,0.08896765]
[1645192726477,1.35926,2901.5,2900.7,0.08896765]
[1645192726676,2.2215712,2901.5,2900.7,0.08896765]
[1645192726875,1.3593112,2901.5,2900.7,0.08896765]
[1645192727675,1.3593112,2901.5,2900.7,0.08713037]
[1645192728116,3.9463934,2901.5,2900.7,0.08345581]
[1645192728322,0.86227,2901.4,2900.7,0.08345581]
[1645192728717,0.86227,2901.4,2900.7,0.0852908]
[1645192728718,0.86232,2901.3,2900.7,0.0852908]
[1645192728918,1.12314383,2900.8,2900.7,0.0852908]
[1645192730123,1.12314383,2900.8,2900.7,0.0843985]
[1645192731022,1.12314383,2900.8,2900.7,0.04421817]
[1645192731961,1.12314383,2900.8,2900.7,0.04238085]
[1645192732362,1.12314383,2900.8,2900.7,0.04432065]
[1645192733062,1.12314383,2900.8,2900.7,0.04248566]
[1645192734066,1.12314383,2900.8,2900.7,0.04054586]
[1645192736123,1.12314383,2900.8,2900.7,0.07825801]
[1645192738018,0.497,2901.0,2900.7,0.07825801]
[1645192739226,1.19369868,2900.8,2900.7,0.07825801]
[1645192739872,1.19369868,2900.8,2900.7,0.08075407]
[1645192740273,0.86236,2901.1,2900.7,0.08075407]
[1645192740674,0.86236,2901.1,2900.7,0.07825801]
[1645192741073,0.86236,2901.1,2900.7,0.04054586]
[1645192741278,0.04923592,2900.8,2900.7,0.04054586]
[1645192742376,0.04923592,2900.8,2900.7,0.04304194]
[1645192743219,0.04923592,2900.8,2900.7,0.04054586]
[1645192748276,0.02498182,2900.8,2900.7,1.50840009]
[1645192748476,0.0021163,2901.4,2900.8,0.07734301]
[1645192748976,0.0021163,2901.4,2900.9,2.54280673]
[1645192749180,0.0021163,2901.4,2900.9,1.07504712]
[1645192750821,0.00201895,2901.4,2900.9,1.07504712]
[1645192751019,0.00201895,2901.4,2901.0,1.4677644]
[1645192751626,0.00201895,2901.4,2900.9,1.07504712]
[1645192753222,0.00428138,2901.4,2900.9,1.07504712]
[1645192753422,0.00226243,2901.4,2900.9,1.07504712]
[1645192754225,0.00479802,2901.5,2900.9,1.07504712]
[1645192754476,0.00226899,2901.4,2900.9,1.07504712]
[1645192755671,0.00226901,2901.4,2900.9,1.07504712]
[1645192756272,0.00096276,2901.4,2901.1,0.04069273]
[1645192756970,0.00223934,2901.4,2901.1,0.04069273]
[1645192758628,0.497,2901.6,2901.1,0.04069273]
[1645192758629,3.50479802,2901.5,2901.1,0.04069273]
[1645192758925,6.83467804,2901.5,2901.1,0.04069273]
[1645192759125,0.497,2901.4,2901.1,0.04069273]
[1645192759327,0.797,2901.4,2901.1,0.04069273]
[1645192760126,0.8623039,2901.3,2901.1,0.04069273]
[1645192760327,1.3593039,2901.3,2901.1,0.04069273]
[1645192761227,1.3593039,2901.3,2900.8,0.117991]
[1645192761429,0.94150115,2901.0,2900.8,0.117991]
[1645192767221,0.00479802,2901.3,2900.8,0.117991]
[1645192768821,0.00479802,2901.3,2900.9,1.46800363]
[1645192771095,0.0043811,2901.5,2900.9,1.46800363]
[1645192771296,0.02281143,2901.3,2900.9,1.46800363]
[1645192771496,0.02346513,2901.2,2900.9,1.46800363]
[1645192772499,0.02346513,2901.2,2900.8,0.07734301]
[1645192775528,0.02346513,2901.2,2900.3,9.88277504]
[1645192776226,0.02346513,2901.2,2900.7,0.00223116]
[1645192778276,0.02346513,2901.2,2900.7,3.50223116]
[1645192778469,0.02346513,2901.2,2900.8,1.46801282]
[1645192778669,0.02346513,2901.2,2900.9,3.5]
[1645192778870,0.02346513,2901.2,2901.0,1.46801282]
[1645192779071,0.02346513,2901.2,2901.1,1.46801282]
[1645192779372,0.02346513,2901.2,2900.8,1.46801282]
[1645192779576,0.02346513,2901.2,2900.9,1.46785242]
[1645192779973,0.02346513,2901.2,2901.0,1.46785242]
[1645192780174,0.02346513,2901.2,2900.7,1.14816863]
[1645192780372,0.02346513,2901.2,2900.8,1.4678585]
[1645192780629,0.02346513,2901.2,2900.8,4.9678585]
[1645192780820,0.02346513,2901.2,2900.9,1.4678585]
[1645192781221,0.00783501,2901.5,2900.9,1.4678585]
[1645192781422,0.00783501,2901.5,2901.0,1.4678585]
[1645192781920,0.00783501,2901.5,2901.3,1.06674439]
[1645192782120,0.00783501,2901.5,2900.9,0.04295279]
[1645192782423,0.00783501,2901.5,2901.0,1.46787759]
[1645192782623,0.87006561,2901.5,2901.0,1.46787759]
[1645192782820,0.87486363,2901.5,2901.0,1.46787759]
[1645192783225,0.86889679,2901.5,2901.0,1.46211479]
[1645192783421,0.00666619,2901.5,2901.1,0.90251379]
[1645192783621,0.00186817,2901.5,2901.1,0.90251379]
[1645192786474,0.00186817,2901.5,2901.2,0.03812059]
[1645192788125,0.03486582,2901.8,2901.2,0.03812059]
[1645192790229,0.03486582,2901.8,2901.2,0.90020059]
[1645192790833,1.34029774,2901.8,2901.2,0.90020059]
[1645192791036,0.03486582,2901.8,2901.2,0.90020059]
[1645192791236,1.34029774,2901.8,2901.4,0.03808082]
[1645192791439,0.03486582,2901.8,2901.4,0.03808082]
[1645192792469,0.0300678,2901.8,2901.4,0.03808082]
[1645192793070,0.03486582,2901.8,2901.4,0.03808082]
[1645192793370,0.0021445,2901.5,2901.4,0.03808082]
[1645192796417,0.0021445,2901.5,2901.1,0.9419981]
[1645192797217,0.00733997,2901.6,2901.1,0.9419981]
[1645192797417,0.00733997,2901.6,2901.1,0.03948431]
[1645192797821,0.0073841,2901.6,2901.1,0.03948431]
[1645192798018,0.00258608,2901.6,2901.1,0.03948431]
[1645192798829,0.497,2901.5,2901.1,0.03948431]
[1645192799021,1.80722994,2901.5,2901.1,0.03948431]
[1645192799476,0.00182477,2901.4,2901.1,0.03948431]
[1645192799677,0.497,2901.3,2901.1,0.03948431]
[1645192801077,0.497,2901.3,2900.7,1.1422]
[1645192801277,0.497,2901.3,2900.7,2.14530009]
[1645192801495,0.03118296,2901.5,2900.7,2.14530009]
[1645192801678,0.00182477,2901.4,2900.7,2.14530009]
[1645192802477,0.1230643,2901.0,2900.7,2.14530009]
[1645192802676,0.00182477,2901.4,2900.7,2.14530009]
[1645192803153,0.00182477,2901.4,2900.8,1.46785695]
[1645192803953,0.1230643,2901.1,2900.8,1.46785695]
[1645192804157,0.12518268,2901.1,2900.8,1.46785695]
[1645192804357,0.00211838,2901.1,2900.8,1.46785695]
[1645192805359,0.00211838,2901.1,2900.7,2.14530009]
[1645192805360,0.00211838,2901.1,2900.7,1.1422]
[1645192805560,0.00211838,2901.1,2900.6,0.00423764]
[1645192805561,0.1230643,2901.0,2900.6,0.00423764]
[1645192805758,0.497,2900.9,2900.6,0.00423764]
[1645192805960,1.80243192,2900.9,2900.6,0.00423764]
[1645192806258,0.86254,2900.7,2900.6,0.00423764]
[1645192806557,2.37765363,2900.7,2900.6,0.00423767]
[1645192806881,1.81511363,2900.7,2899.8,7.31695492]
[1645192807677,0.8626166,2900.3,2899.8,7.32570423]
[1645192807877,0.8626166,2900.3,2899.8,7.3172268]
[1645192808177,0.8626166,2900.3,2899.8,0.0172268]
[1645192808575,0.1230643,2900.0,2899.8,0.00874931]
[1645192810628,0.1230643,2900.0,2899.7,0.00764829]
[1645192810930,0.797,2900.4,2899.5,0.86248]
[1645192811127,0.1230643,2899.7,2899.5,0.86248]
[1645192811332,0.797,2900.4,2899.5,0.86248]
[1645192811729,0.797,2900.4,2899.4,0.00410454]
[1645192812034,0.8626091,2900.2,2899.8,1.1811051]
[1645192812229,0.497,2900.4,2899.8,1.1811051]
[1645192812430,3.0852,2900.8,2899.9,3.5]
[1645192812631,1.30543192,2901.1,2899.8,1.1811051]
[1645192812632,0.497,2901.1,2899.8,1.1811051]
[1645192812831,3.1277,2901.2,2899.9,3.51718247]
[1645192812832,0.1230643,2900.2,2899.9,3.51718247]
[1645192813029,2.81776,2901.2,2899.9,0.01718247]
[1645192813331,1.7248944,2901.0,2899.9,0.01718247]
[1645192813527,1.7248944,2901.0,2899.9,3.51718247]
[1645192813728,1.17818228,2900.8,2899.9,0.01718247]
[1645192813929,0.86244,2900.9,2899.9,0.01718247]
[1645192814132,2.8176998,2901.2,2900.4,1.30882709]
[1645192814375,2.8176998,2901.2,2900.4,2.61765418]
[1645192814578,0.8622998,2901.2,2900.4,2.61765418]
[1645192814975,1.87513501,2901.2,2900.4,3.46163516]
[1645192815177,0.02456019,2901.5,2900.5,3.5]
[1645192815776,0.1230643,2901.0,2900.6,20.2]
[1645192815976,0.1230643,2901.0,2900.7,3.5]
[1645192816175,0.02456019,2901.5,2900.7,5.22395]
[1645192816477,0.02456019,2901.5,2901.1,0.95388314]
[1645192816681,0.02456019,2901.5,2901.0,0.86203]
[1645192816878,0.00256153,2901.1,2900.9,3.5]
[1645192817082,0.00256153,2901.1,2900.8,3.5]
[1645192817278,0.00256153,2901.1,2900.8,5.22401]
[1645192817680,0.00256153,2901.1,2900.9,0.86197]
[1645192817880,0.00256153,2901.1,2901.0,3.5]
[1645192818128,0.00256138,2901.4,2901.1,3.50405016]
[1645192818425,0.00256138,2901.4,2901.2,1.83546529]
[1645192818626,0.00256138,2901.4,2901.2,2.09486529]
[1645192818827,0.1230643,2901.3,2901.2,24.01846529]
[1645192819027,0.00479802,2901.8,2901.4,4.0]
[1645192819229,0.00479802,2901.8,2901.4,25.071]
[1645192819429,0.00479802,2901.8,2901.6,1.30882709]
[1645192819735,11.71698302,2902.0,2901.6,1.30882709]
[1645192819932,11.71698302,2902.0,2901.7,1.79379101]
[1645192820934,11.71698302,2902.0,2901.7,5.29379101]
[1645192821532,11.71698302,2902.0,2901.7,1.79379101]
[1645192821732,11.71698302,2902.0,2901.7,0.93201101]
[1645192822390,3.73946772,2902.0,2901.8,3.5]
[1645192822579,0.00479802,2902.7,2901.9,23.7]
[1645192822785,0.00866655,2902.8,2902.1,20.2]
[1645192822978,0.00866655,2902.8,2902.2,3.5]
[1645192823178,0.00866655,2902.8,2902.5,0.86148]
[1645192823377,0.00866655,2902.8,2902.5,4.36148]
[1645192823579,0.00866655,2902.8,2902.6,1.09291293]
[1645192823977,0.00866661,2902.8,2902.6,1.09291293]
[1645192824177,0.00866661,2902.8,2902.6,21.29291293]
[1645192824379,0.00866661,2902.8,2902.7,20.2]
[1645192824782,0.00866661,2902.8,2902.7,23.31465418]
[1645192825183,0.00479448,2903.9,2902.8,6.5]
[1645192825389,0.00479448,2903.9,2903.2,0.8612]
[1645192825625,0.00479448,2904.2,2903.3,0.497]
[1645192825825,0.00479448,2904.5,2903.3,0.497]
[1645192826024,0.00479448,2904.6,2903.3,0.497]
[1645192826227,0.99755966,2904.2,2903.5,0.99107683]
[1645192826426,0.00479448,2904.1,2903.5,0.99107683]
[1645192826626,0.00479448,2904.6,2903.5,0.99107683]
[1645192826825,0.00479448,2904.7,2903.5,0.99107683]
[1645192827029,0.00479448,2904.8,2903.5,0.99107683]
[1645192827430,0.94452262,2904.4,2903.5,4.49107683]
[1645192827639,0.00479448,2904.3,2903.5,0.99107683]
[1645192827932,0.00479448,2904.3,2903.3,3.5]
[1645192828132,0.00479448,2904.3,2903.2,0.3032]
[1645192828433,0.00479448,2904.3,2903.1,4.36134]
[1645192828832,0.00479448,2904.3,2903.5,1.04947438]
[1645192829133,0.00479448,2904.3,2903.6,3.5]
[1645192829787,0.00479448,2905.0,2903.5,1.91067438]
[1645192829987,0.00224453,2903.9,2903.5,22.11067438]
[1645192830386,0.00224453,2903.9,2903.5,1.04947438]
[1645192832191,0.00228136,2904.0,2903.5,1.04947438]
[1645192832395,0.00228136,2904.0,2903.5,1.91073438]
[1645192832590,0.00228136,2904.0,2903.5,1.04947438]
[1645192832798,0.00228145,2903.8,2903.5,1.04947438]
[1645192833722,0.0045629,2903.8,2903.5,1.04947438]
[1645192833924,0.0045629,2903.8,2903.2,3.46353427]
[1645192834124,0.0045629,2903.8,2903.2,0.01833427]
[1645192834526,0.00228145,2903.8,2903.2,0.01833427]
[1645192834924,0.00228145,2903.8,2903.3,1.11246597]
[1645192835127,0.00228145,2903.8,2903.6,1.30882709]
[1645192836127,0.03603913,2904.2,2903.6,1.30882709]
[1645192837168,0.00234053,2904.0,2903.6,1.30882709]
[1645192837570,0.02724034,2903.7,2903.6,1.3290376]
[1645192839880,0.0290646,2903.8,2903.7,6.0]
[1645192840082,0.00933455,2904.2,2903.8,3.5]
[1645192840485,0.00479448,2905.1,2904.0,2.61765418]
[1645192840728,0.00479448,2905.3,2904.1,3.5]
[1645192840925,0.00479448,2905.3,2904.8,1.11741572]
[1645192841727,0.86586298,2905.3,2904.8,1.11741572]
[1645192841930,0.00479448,2905.3,2904.1,4.7246]
[1645192842126,0.00104582,2905.2,2904.1,1.2246]
[1645192842925,0.86114,2905.2,2904.2,1.10326915]
[1645192843132,0.00479448,2905.1,2904.2,1.10326915]
[1645192843327,0.86225062,2904.8,2904.2,4.60326915]
[1645192843527,0.00479448,2904.7,2904.2,4.60326915]
[1645192843727,0.00104582,2904.8,2904.2,4.60326915]
[1645192844378,0.00479448,2905.0,2904.2,4.60326915]
[1645192844584,0.00253355,2904.6,2904.2,4.60326915]
[1645192844788,0.00253355,2904.6,2904.2,1.10326915]
[1645192845294,0.00732803,2904.6,2904.2,1.10326915]
[1645192845484,0.00732803,2904.6,2904.0,2.61765418]
[1645192845485,0.00479448,2904.6,2904.0,2.61765418]
[1645192845690,0.00253357,2904.5,2903.6,5.48421051]
[1645192845885,0.00253357,2904.5,2904.2,1.30882709]
[1645192846086,0.00253357,2904.5,2904.2,2.61765418]
[1645192846888,0.00253362,2904.4,2904.2,2.61765418]
[1645192847088,0.00253362,2904.4,2904.3,3.5]
[1645192847285,0.00253362,2904.4,2904.2,2.61765418]
[1645192847488,0.00253362,2904.4,2904.3,3.5]
[1645192847685,0.00253362,2904.4,2904.3,1.04196701]
[1645192847885,0.00253362,2904.4,2904.3,4.54196701]
[1645192848329,0.0025336,2904.5,2904.3,4.54196701]
[1645192848524,0.0025336,2904.5,2904.3,1.04196701]
[1645192849225,0.02573525,2904.7,2904.3,1.04196701]
[1645192850834,0.0021391,2904.6,2904.3,1.04196701]
[1645192851229,0.0021391,2904.6,2904.4,2.61765418]
[1645192851630,0.02573525,2904.7,2904.4,2.61765418]
[1645192851873,0.00213912,2904.6,2904.4,2.61765418]
[1645192852075,0.00213912,2904.6,2904.4,6.11765418]
[1645192852276,0.00213912,2904.6,2904.4,6.14074321]
[1645192852875,0.00213912,2904.6,2904.4,2.64074321]
[1645192853275,0.00228019,2904.6,2904.4,6.14074321]
[1645192853478,0.00228019,2904.6,2904.4,2.64074321]
[1645192854077,0.00479448,2905.4,2904.4,2.64074321]
[1645192854278,1.72701248,2905.4,2904.4,2.64074321]
[1645192854478,0.00229959,2904.6,2904.4,2.64074321]
[1645192855281,0.86582398,2905.4,2904.4,2.64074321]
[1645192855480,0.00087694,2904.6,2904.5,3.31837363]
[1645192855721,0.00087694,2904.6,2904.4,2.64074321]
[1645192855925,0.00087694,2904.6,2904.4,2.81284321]
[1645192856323,0.00087694,2904.6,2904.4,0.19518903]
[1645192856524,0.00479448,2905.4,2904.4,0.19518903]
[1645192856525,0.00479448,2905.4,2904.9,0.90404978]
[1645192856725,0.00868058,2905.1,2904.9,0.90404978]
[1645192856923,0.00868058,2905.1,2904.5,3.47859418]
[1645192857524,0.04243095,2904.6,2904.5,3.47859418]
[1645192857726,0.04243095,2904.6,2904.5,2.61765418]
[1645192861879,0.00214959,2904.7,2904.5,2.61765418]
[1645192862078,0.00214959,2904.7,2904.5,1.48092709]
[1645192862079,0.04222387,2904.6,2904.5,1.48092709]
[1645192862277,0.06400801,2904.6,2904.5,0.1721]
[1645192863320,0.06400801,2904.6,2904.4,1.08287587]
[1645192863522,2.12954915,2905.7,2905.3,1.10583229]
[1645192863827,69.01382008,2910.3,2905.3,1.10583229]
[1645192863828,0.3,2905.8,2905.3,1.10583229]
[1645192864023,0.3434384,2906.1,2905.3,1.10583229]
[1645192864222,0.8609669,2905.8,2905.3,1.10583229]
[1645192864426,0.3,2905.8,2905.3,1.10583229]
[1645192864625,0.3434384,2906.1,2905.3,1.10583229]
[1645192865031,0.0434384,2906.1,2905.3,1.10583229]
[1645192865225,0.00088196,2905.7,2905.3,1.10583229]
[1645192865925,0.86182506,2905.7,2905.3,1.10583229]
[1645192866130,0.8609431,2905.7,2905.3,1.10583229]
[1645192866333,0.00088196,2905.6,2905.3,1.10583229]
[1645192867170,0.00088196,2905.6,2905.5,0.02350037]
[1645192867171,0.0244476,2905.6,2905.5,0.02350037]
[1645192867378,0.02356564,2905.6,2905.5,1.33232746]
[1645192867572,0.02356564,2905.6,2905.5,2.64115455]
[1645192867772,0.02593918,2905.6,2905.5,2.64115455]
[1645192868576,0.02356564,2905.6,2905.5,2.64115455]
[1645192868774,0.02291511,2905.8,2905.5,2.64115455]
[1645192868775,1.72449593,2905.7,2905.5,2.64115455]
[1645192868979,0.00240593,2905.7,2905.5,2.64115455]
[1645192869173,0.30240593,2905.7,2905.5,2.64115455]
[1645192869573,0.00240593,2905.7,2905.5,2.64115455]
[1645192869779,1.00827085,2905.6,2905.5,2.64115455]
[1645192869983,1.00827085,2905.6,2904.0,0.60729273]
[1645192869984,5.0,2905.5,2904.8,0.00240666]
[1645192870180,1.3582207,2905.4,2904.8,0.00240666]
[1645192870379,0.86124,2905.3,2904.8,0.00240666]
[1645192870623,2.8194507,2905.4,2904.8,0.00240666]
[1645192870823,0.97027826,2904.9,2904.8,0.00240666]
[1645192871224,1.27027826,2904.9,2904.8,0.00240666]
[1645192872224,1.27027826,2904.9,2903.9,3.5]
[1645192872424,1.27027826,2904.9,2904.7,0.00214259]
[1645192872425,0.8612483,2904.8,2904.7,0.00214259]
[1645192873423,0.8612483,2904.8,2904.0,0.86125]
[1645192873624,0.8612483,2904.8,2904.6,0.00214264]
[1645192874685,0.8612483,2904.8,2904.0,0.86125]
[1645192874885,0.8612483,2904.8,2904.6,0.00214266]
[1645192875786,0.8612483,2904.8,2904.0,0.86125]
[1645192876087,0.8612483,2904.8,2904.6,0.00249151]
[1645192877086,0.02743034,2904.7,2904.1,0.03923754]
[1645192877285,0.02743034,2904.7,2904.6,0.00249151]
[1645192878125,0.02743034,2904.7,2904.1,0.03923754]
[1645192878526,0.02743034,2904.7,2904.5,0.00249154]
[1645192878728,0.88871754,2904.7,2904.5,0.00249154]
[1645192879730,0.88871754,2904.7,2904.5,0.00253402]
[1645192880734,0.88871754,2904.7,2904.1,0.03923754]
[1645192881034,0.86138,2904.6,2904.5,0.00253402]
[1645192881236,0.02743034,2904.7,2904.5,0.00253402]
[1645192881875,0.02743034,2904.7,2904.1,0.03923754]
[1645192882080,0.01634593,2904.7,2904.6,0.03831543]
[1645192882474,0.01634593,2904.7,2903.9,2.8838]
[1645192882676,0.01634593,2904.7,2903.6,0.1721]
[1645192882677,1.1727791,2904.4,2903.6,0.1721]
[1645192882884,1.31179985,2904.2,2903.0,6.2322]
[1645192883077,1.80879985,2904.1,2903.1,1.46663136]
[1645192883275,1.35868,2904.0,2903.0,4.36166]
[1645192883476,2.67047985,2904.0,2903.0,4.36166]
[1645192883677,2.67047985,2904.0,2903.2,0.86410679]
[1645192883875,1.1537344,2903.8,2903.2,0.86410679]
[1645192884077,0.8616681,2903.7,2903.2,1.16410679]
[1645192884278,1.7233281,2903.7,2902.8,3.6721]
[1645192884482,1.31179985,2903.7,2902.6,6.9701]
[1645192884688,0.497,2903.6,2902.6,3.6721]
[1645192885083,0.8617117,2903.5,2902.8,0.8617]
[1645192885282,0.8617117,2903.5,2902.8,1.91681016]
[1645192885283,1.70474179,2903.5,2902.8,1.91681016]
[1645192885724,1.7234417,2903.5,2902.8,1.05511016]
[1645192886125,1.7234417,2903.5,2902.8,1.35511016]
[1645192886326,1.0691117,2903.5,2902.5,2.51924684]
[1645192886525,0.8617634,2903.3,2902.5,2.34714684]
[1645192886724,0.86191,2903.1,2902.5,2.34714684]
[1645192887431,2.89646819,2902.9,2902.1,0.99435867]
[1645192887624,0.497,2902.8,2902.1,0.99435867]
[1645192888025,0.497,2902.8,2902.0,0.91352333]
[1645192888424,0.497,2902.8,2902.0,0.86189]
[1645192888623,1.35889,2902.8,2902.0,0.86189]
[1645192889024,1.35889,2902.8,2902.2,1.12429312]
[1645192889225,0.497,2902.8,2902.2,1.12429312]
[1645192890084,0.497,2902.8,2902.2,1.42429312]
[1645192890482,1.91209999,2903.3,2902.3,4.53393]
[1645192890483,0.497,2903.2,2902.3,4.53393]
[1645192890697,1.91209999,2903.3,2902.3,1.03393]
[1645192890698,0.04999999,2903.3,2902.3,1.03393]
[1645192890878,0.04999999,2903.3,2902.7,1.18763833]
[1645192891079,0.04999999,2903.3,2902.3,1.03393]
[1645192891080,0.04999999,2903.3,2902.3,3.5]
[1645192891486,0.91180509,2903.3,2902.2,3.74675]
[1645192891682,0.91180509,2903.3,2902.2,3.91885]
[1645192891884,0.86182,2903.1,2902.2,3.44675]
[1645192892089,0.03873902,2902.7,2902.2,0.85644668]
[1645192893132,0.03873902,2902.7,2902.2,1.15644668]
[1645192893532,0.03873902,2902.7,2902.2,2.01828668]
[1645192894332,0.03873902,2902.7,2902.2,2.88012668]
[1645192894736,0.03873902,2902.7,2902.3,3.5]
[1645192894936,0.03873902,2902.7,2902.4,1.72327]
[1645192895135,0.03873902,2902.7,2902.5,3.5]
[1645192895340,0.03873902,2902.7,2902.5,3.8]
[1645192895536,0.03873902,2902.7,2902.5,3.9721]
[1645192895736,1.8693,2903.8,2902.7,0.10280211]
[1645192895936,0.86157,2903.9,2902.7,0.10280211]
[1645192896137,0.86157,2903.9,2902.7,1.82592211]
[1645192896333,0.86157,2903.9,2902.8,1.16156]
[1645192896973,0.86157,2903.9,2902.9,1.05229566]
[1645192896974,0.86650254,2903.6,2902.9,1.05229566]
[1645192897175,0.86171,2903.4,2902.9,1.05229566]
[1645192898580,0.86165,2903.6,2902.9,1.05229566]
[1645192898785,3.22713194,2904.2,2903.0,3.5]
[1645192898786,0.1721,2904.1,2903.0,3.5]
[1645192898982,3.5228,2904.2,2903.1,1.72287]
[1645192899182,0.17687051,2904.5,2903.1,1.72287]
[1645192899382,0.00477051,2904.3,2903.1,1.72287]
[1645192899584,0.86148,2904.2,2903.3,0.86144]
[1645192899782,1.04472205,2904.1,2903.3,0.86144]
[1645192900182,1.04472205,2904.1,2903.2,1.72288]
[1645192900385,1.04472205,2904.1,2903.3,0.3]
[1645192900632,1.04472205,2904.1,2903.5,0.90421898]
[1645192901226,0.86149,2904.2,2903.5,0.90421898]
[1645192901432,0.86149,2904.2,2903.3,1.16149]
[1645192901627,0.86149,2904.2,2903.3,0.3]
[1645192901828,0.86154,2904.0,2903.3,0.3]
[1645192902030,0.0173361,2903.5,2903.3,0.3]
[1645192902531,0.0173361,2903.5,2903.1,0.01947877]
[1645192902931,0.0173361,2903.5,2903.1,0.31947877]
[1645192903138,0.0173361,2903.5,2903.1,0.01947877]
[1645192904376,0.0173361,2903.5,2903.2,0.00253469]
[1645192904779,0.8790861,2903.5,2903.2,0.00253469]
[1645192905784,0.0173361,2903.5,2903.2,0.00253469]
[1645192906377,0.0173361,2903.5,2903.1,0.01947877]
[1645192906583,0.0173361,2903.5,2903.2,3.466e-05]
[1645192906584,3.5173361,2903.5,2903.2,3.466e-05]
[1645192906784,3.5173361,2903.5,2903.1,0.01947877]
[1645192906785,6.5,2903.2,2903.1,0.01871343]
[1645192906984,6.5,2903.2,2902.7,0.10280211]
[1645192906985,0.86209,2903.1,2902.7,0.10280211]
[1645192907181,0.497,2903.0,2902.7,0.10280211]
[1645192907679,1.7608374,2902.9,2902.7,0.10280211]
[1645192907884,0.497,2902.8,2902.7,0.10280211]
[1645192908137,1.35905,2902.8,2902.7,0.10280211]
[1645192911981,4.85905,2902.8,2902.7,0.10280211]
[1645192912182,4.87761938,2902.8,2902.7,0.1330487]
[1645192912584,6.04971938,2902.8,2902.7,0.1330487]
[1645192913589,2.54971938,2902.8,2902.7,0.1330487]
[1645192913785,2.37761938,2902.8,2902.7,0.1330487]
[1645192913984,1.37761938,2902.8,2902.7,0.1330487]
[1645192914384,2.89189032,2902.8,2902.7,0.1330487]
[1645192914590,1.89189032,2902.8,2902.7,0.1330487]
[1645192915189,1.37761938,2902.8,2902.7,0.1330487]
[1645192916025,1.67761938,2902.8,2902.7,0.1330487]
[1645192916827,5.17761938,2902.8,2902.7,0.1330487]
[1645192917224,1.67761938,2902.8,2902.7,0.1330487]
[1645192917630,0.36013983,2902.8,2902.7,0.1330487]
[1645192917837,0.34399681,2902.9,2902.7,0.1330487]
[1645192918035,3.1631,2903.6,2902.7,0.1330487]
[1645192918231,1.49663867,2904.0,2902.8,0.1721]
[1645192918232,0.18483882,2904.0,2902.8,0.1721]
[1645192918440,0.86143,2904.3,2902.8,3.9721]
[1645192918441,1.31179985,2904.2,2902.8,3.9721]
[1645192918637,3.1901,2904.3,2903.0,5.0]
[1645192918638,1.31179985,2904.3,2903.0,5.0]
[1645192918842,0.00477051,2904.5,2904.1,1.12868735]
[1645192919137,0.00477051,2904.9,2904.3,1.72171]
[1645192919383,0.5404384,2906.1,2904.3,1.72171]
[1645192919384,1.72897456,2906.0,2904.4,3.6721]
[1645192919585,1.77241296,2906.1,2904.7,1.72172]
[1645192919783,0.0434384,2906.1,2904.8,0.4719]
[1645192919988,0.0434384,2906.1,2904.8,1.33276]
[1645192920187,0.0434384,2906.1,2904.0,20.7623]
[1645192920394,6.5,2904.8,2902.8,4.62253896]
[1645192920591,5.0,2904.5,2902.9,1.46637734]
[1645192920794,5.0,2904.5,2902.7,1.3051487]
[1645192920795,5.0,2904.3,2902.7,3.5783787]